[Event "47th GRE-chT 2019"]
[Site "Patra"]
[Date "2019.07.05"]
[Round "6.28"]
[White "Ergazakis, Ioannis"]
[Black "Tsarsitalidis, Konstantinos"]
[Result "0-1"]
[ECO "D90"]
[WhiteElo "2281"]
[BlackElo "2001"]
[Annotator "NA"]
[PlyCount "114"]
[EventDate "2019.07.02"]
[EventCountry "GRE"]
[SourceTitle "playchess.com"]
[Source "ChessBase"]
[SourceQuality "1"]
[TimeControl "5400+30"]

1. d4 {[%emt 0:00:19]} Nf6 {[%emt 0:00:00]} 2. c4 {[%emt 0:00:05]} g6 {[%emt 0:00:00]} 3. Nc3 {[%emt 0:00:04]} d5 {[%emt 0:00:00]} 4. Nf3 {[%emt 0:00:05]} Bg7 {[%emt 0:00:00]} 5. h4 {[%emt 0:00:11]} c6 {[%emt 0:00:00]} 6. Bg5 {[%emt 0:01:26]} O-O {[%emt 0:00:00]} 7. Bxf6 {[%emt 0:01:10]} Bxf6 {[%emt 0:00:00]} 8. e3 {[%emt 0:00:12]} Bf5 {[%emt 0:02:09]} 9. h5 {[%emt 0:02:42]} e6 {[%emt 0:03:05]} 10. Qd2 {[%emt 0:05:07]} Nd7 {[%emt 0:05:16]} 11. cxd5 {[%emt 0:02:20]} cxd5 {[%emt 0:04:17]} 12. Bd3 {[%emt 0:13:45]} Bxd3 {[%emt 0:00:07]} 13. Qxd3 {[%emt 0:01:36]} Rc8 {[%emt 0:04:47]} 14. Kf1 {[%emt 0:13:25]} Nb6 {[%emt 0:23:08]} 15. g3 {[%emt 0:01:53]} Nc4 {[%emt 0:02:12]} 16. Rb1 {[%emt 0:03:36]} Qa5 {[%emt 0:04:35]} 17. b4 {[%emt 0:03:41]} Qa3 {[%emt 0:02:42]} 18. Rb3 {[%emt 0:02:02]} Qa6 {[%emt 0:01:56]} 19. Kg2 {[%emt 0:03:02]} Qc6 {[%emt 0:13:37]} 20. b5 {[%emt 0:04:10]} Qd7 {[%emt 0:10:09]} 21. Nh2 {[%emt 0:04:27]} Qe7 {[%emt 0:02:09]} 22. Ng4 {[%emt 0:00:58]} Bg7 {[%emt 0:05:25]} 23. Ne2 {[%emt 0:04:33]} Qg5 {[%emt 0:02:00]} 24. Rh4 {[%emt 0:02:22]} Qf5 {[%emt 0:01:24]} 25. hxg6 {[%emt 0:00:41]} fxg6 {[%emt 0:01:06]} 26. Nh6+ {[%emt 0:00:28]} Bxh6 {[%emt 0:00:06]} 27. Qxf5 {[%emt 0:03:22]} Rxf5 {[%emt 0:00:05]} 28. Rxh6 {[%emt 0:01:46]} Na5 {[%emt 0:03:17]} 29. Rb2 {[%emt 0:03:14]} Rf7 {[%emt 0:00:55]} 30. Nf4 {[%emt 0:00:34]} Re7 {[%emt 0:02:53]} 31. g4 {[%emt 0:06:09]} Rc3 {[%emt 0:03:14]} 32. Rb1 {[%emt 0:02:41]} Rc2 {[%emt 0:00:15]} 33. Rbh1 {[%emt 0:03:07]} Rf7 {[%emt 0:00:45]} 34. g5 {[%emt 0:01:57]} Nc4 {[%emt 0:02:34]} 35. Kf3 {[%emt 0:01:23]} Nd2+ {[%emt 0:01:03]} 36. Kg2 {[%emt 0:01:12]} Ne4 {[%emt 0:00:12]} 37. Rf1 {[%emt 0:00:52]} Nxg5 {[%emt 0:02:12]} 38. Rh2 {[%emt 0:04:04]} Rf6 {[%emt 0:00:21]} 39. a4 {[%emt 0:00:44]} b6 {[%emt 0:00:00]} 40. a5 {[%emt 0:00:00]} Ne4 {[%emt 0:00:00]} 41. axb6 {[%emt 0:00:00]} axb6 {[%emt 0:00:00]} 42. Ra1 {[%emt 0:00:00]} Rxf2+ {[%emt 0:00:00]} 43. Kg1 {[%emt 0:00:00]} Rxh2 {[%emt 0:00:00]} 44. Kxh2 {[%emt 0:00:00]} Nd6 {[%emt 0:00:00]} 45. Ra6 {[%emt 0:00:00]} Nc4 {[%emt 0:00:00]} 46. Kg3 {[%emt 0:00:00]} Kg7 {[%emt 0:00:00]} 47. Ra7+ {[%emt 0:00:00]} Kh6 {[%emt 0:00:00]} 48. Rb7 {[%emt 0:00:00]} Nxe3 {[%emt 0:00:00]} 49. Rxb6 {[%emt 0:00:00]} Nf5+ {[%emt 0:00:00]} 50. Kg4 {[%emt 0:00:00]} Nxd4 {[%emt 0:00:00]} 51. Nxd5 {[%emt 0:00:00]} Rf5 {[%emt 0:00:00]} 52. Nc7 {[%emt 0:00:00]} Rc5 {[%emt 0:00:00]} 53. Rb7 {[%emt 0:00:00]} e5 {[%emt 0:00:00]} 54. b6 {[%emt 0:00:00]} Nf5 {[%emt 0:00:00]} 55. Ne8 {[%emt 0:00:00]} Rc3 {[%emt 0:00:00]} 56. Rxh7+ {[%emt 0:00:00]} Kxh7 {[%emt 0:00:00]} 57. Nf6+ {[%emt 0:00:00]} Kg7 {[%emt 0:00:00]} 0-1

[Event "47th GRE-chT 2019"]
[Site "Patra"]
[Date "2019.07.05"]
[Round "6.29"]
[White "Kazakos, Markos"]
[Black "Loukisas, Dimitrios"]
[Result "1-0"]
[ECO "D02"]
[WhiteElo "2069"]
[BlackElo "1898"]
[Annotator "NA"]
[PlyCount "91"]
[EventDate "2019.07.02"]
[EventCountry "GRE"]
[SourceTitle "playchess.com"]
[Source "ChessBase"]
[SourceQuality "1"]
[TimeControl "5400+30"]

1. Nf3 {[%emt 0:00:00]} d5 {[%emt 0:00:10]} 2. g3 {[%emt 0:00:00]} Nf6 {[%emt 0:00:30]} 3. Bg2 {[%emt 0:00:10]} c5 {[%emt 0:00:33]} 4. O-O {[%emt 0:01:03]} Nc6 {[%emt 0:00:06]} 5. d4 {[%emt 0:00:29]} cxd4 {[%emt 0:00:23]} 6. Nxd4 {[%emt 0:00:37]} e5 {[%emt 0:00:09]} 7. Nxc6 {[%emt 0:00:30]} bxc6 {[%emt 0:00:07]} 8. c4 {[%emt 0:00:34]} Be6 {[%emt 0:00:24]} 9. Qa4 {[%emt 0:00:49]} Qd7 {[%emt 0:02:43]} 10. Nc3 {[%emt 0:04:07]} Rc8 {[%emt 0:04:19]} 11. cxd5 {[%emt 0:03:06]} cxd5 {[%emt 0:00:06]} 12. Qxd7+ {[%emt 0:00:07]} Kxd7 {[%emt 0:00:07]} 13. Rd1 {[%emt 0:11:20]} Rc5 {[%emt 0:03:28]} 14. Bg5 {[%emt 0:04:58]} Kc6 {[%emt 0:12:29]} 15. Rac1 {[%emt 0:02:11]} a5 {[%emt 0:01:52]} 16. Be3 {[%emt 0:03:21]} Rxc3 {[%emt 0:06:16]} 17. Rxc3+ {[%emt 0:07:11]} Kb5 {[%emt 0:00:31]} 18. a4+ {[%emt 0:06:53]} Kxa4 {[%emt 0:01:30]} 19. Ra1+ {[%emt 0:00:22]} Kb5 {[%emt 0:00:08]} 20. Rc7 {[%emt 0:00:59]} Bb4 {[%emt 0:02:18]} 21. Rb7+ {[%emt 0:06:22]} Kc4 {[%emt 0:05:26]} 22. Bb6 {[%emt 0:11:32]} Ra8 {[%emt 0:03:36]} 23. e3 {[%emt 0:03:21]} Kd3 {[%emt 0:02:57]} 24. Bc7 {[%emt 0:06:41]} Nd7 {[%emt 0:02:26]} 25. Rxb4 {[%emt 0:00:21]} axb4 {[%emt 0:01:07]} 26. Rxa8 {[%emt 0:00:07]} Kc2 {[%emt 0:00:25]} 27. Rd8 {[%emt 0:13:59]} e4 {[%emt 0:00:52]} 28. Bf1 {[%emt 0:09:56]} Kxb2 {[%emt 0:01:34]} 29. Bb5 {[%emt 0:01:04]} Nc5 {[%emt 0:03:32]} 30. Bd6 {[%emt 0:01:21]} Nb7 {[%emt 0:00:40]} 31. Be5+ {[%emt 0:00:06]} Kc2 {[%emt 0:00:44]} 32. Rb8 {[%emt 0:00:40]} Nc5 {[%emt 0:00:24]} 33. Bd6 {[%emt 0:01:05]} Nd3 {[%emt 0:02:02]} 34. Bxd3+ {[%emt 0:00:59]} exd3 {[%emt 0:00:08]} 35. Bxb4 {[%emt 0:00:07]} d2 {[%emt 0:00:28]} 36. Bxd2 {[%emt 0:00:05]} Kxd2 {[%emt 0:00:08]} 37. Rh8 {[%emt 0:00:22]} g5 {[%emt 0:02:52]} 38. Rxh7 {[%emt 0:01:16]} g4 {[%emt 0:00:08]} 39. Rg7 {[%emt 0:00:20]} Kd3 {[%emt 0:00:22]} 40. Rg8 {[%emt 0:00:00]} Ke4 {[%emt 0:00:00]} 41. Rb8 {[%emt 0:00:00]} Kd3 {[%emt 0:00:00]} 42. Rb4 {[%emt 0:00:00]} Ke2 {[%emt 0:00:00]} 43. Rf4 {[%emt 0:00:00]} Ke1 {[%emt 0:00:00]} 44. h4 {[%emt 0:00:00]} gxh3 {[%emt 0:00:00]} 45. g4 {[%emt 0:00:00]} Ke2 {[%emt 0:00:00]} 46. Kh2 {[%emt 0:00:00]} 1-0

[Event "47th GRE-chT 2019"]
[Site "Patra"]
[Date "2019.07.05"]
[Round "6.30"]
[White "Souchleris, Nikolaos"]
[Black "Tsarsitalidis, Christos"]
[Result "1/2-1/2"]
[ECO "D05"]
[WhiteElo "1204"]
[BlackElo "1802"]
[Annotator "NA"]
[PlyCount "61"]
[EventDate "2019.07.02"]
[EventCountry "GRE"]
[SourceTitle "playchess.com"]
[Source "ChessBase"]
[SourceQuality "1"]
[TimeControl "5400+30"]

1. d4 {[%emt 0:00:00]} d5 {[%emt 0:00:00]} 2. Nf3 {[%emt 0:00:00]} Nf6 {[%emt 0:00:00]} 3. e3 {[%emt 0:00:00]} e6 {[%emt 0:00:00]} 4. Bd3 {[%emt 0:00:00]} c5 {[%emt 0:00:00]} 5. b3 {[%emt 0:00:00]} Nc6 {[%emt 0:00:17]} 6. Bb2 {[%emt 0:00:30]} Bd6 {[%emt 0:00:11]} 7. O-O {[%emt 0:00:07]} O-O {[%emt 0:00:12]} 8. c4 {[%emt 0:01:21]} b6 {[%emt 0:00:23]} 9. Nbd2 {[%emt 0:01:10]} Bb7 {[%emt 0:02:33]} 10. Rc1 {[%emt 0:04:49]} Rc8 {[%emt 0:02:42]} 11. Qe2 {[%emt 0:05:09]} Re8 {[%emt 0:05:01]} 12. Rfd1 {[%emt 0:10:02]} Qe7 {[%emt 0:19:02]} 13. Bb1 {[%emt 0:15:46]} Rcd8 {[%emt 0:09:23]} 14. h3 {[%emt 0:03:34]} h6 {[%emt 0:07:05]} 15. Re1 {[%emt 0:04:54]} cxd4 {[%emt 0:00:51]} 16. exd4 {[%emt 0:08:09]} Bb4 {[%emt 0:15:28]} 17. Qd3 {[%emt 0:06:52]} g6 {[%emt 0:05:57]} 18. Qe3 {[%emt 0:02:00]} Kg7 {[%emt 0:04:59]} 19. Re2 {[%emt 0:03:21]} Ba3 {[%emt 0:01:10]} 20. Bxa3 {[%emt 0:00:04]} Qxa3 {[%emt 0:02:49]} 21. Rce1 {[%emt 0:04:00]} Ba6 {[%emt 0:04:37]} 22. Ne5 {[%emt 0:12:54]} dxc4 {[%emt 0:06:05]} 23. Nxc6 {[%emt 0:03:57]} Rc8 {[%emt 0:01:46]} 24. Nxa7 {[%emt 0:01:31]} Rc7 {[%emt 0:00:41]} 25. Nxc4 {[%emt 0:00:15]} Bxc4 {[%emt 0:00:12]} 26. bxc4 {[%emt 0:00:15]} Qxa7 {[%emt 0:01:04]} 27. Qb3 {[%emt 0:01:12]} Rd8 {[%emt 0:00:49]} 28. Rd2 {[%emt 0:02:38]} Qa6 {[%emt 0:06:47]} 29. Rc1 {[%emt 0:06:53]} Qa5 {[%emt 0:01:34]} 30. Rcd1 {[%emt 0:01:28]} Rdc8 {[%emt 0:01:19]} 31. Bd3 {[%emt 0:00:53]} 1/2-1/2

[Event "47th GRE-chT 2019"]
[Site "Patra"]
[Date "2019.07.05"]
[Round "6.32"]
[White "Postny, Evgeny"]
[Black "Gouloutis, Nikolaos"]
[Result "1/2-1/2"]
[ECO "E16"]
[WhiteElo "2601"]
[BlackElo "2367"]
[Annotator "RC"]
[PlyCount "173"]
[EventDate "2019.07.02"]
[EventCountry "GRE"]
[SourceTitle "playchess.com"]
[Source "ChessBase"]
[SourceQuality "1"]
[TimeControl "5400+30"]

1. d4 {[%emt 0:00:00]} Nf6 {[%emt 0:00:00]} 2. c4 {[%emt 0:00:00]} e6 {[%emt 0:00:00]} 3. g3 {[%emt 0:02:14]} d5 {[%emt 0:00:00]} 4. Bg2 {[%emt 0:00:06]} Bb4+ {[%emt 0:00:00]} 5. Nd2 {[%emt 0:00:17]} O-O {[%emt 0:00:00]} 6. Ngf3 {[%emt 0:02:14]} b6 {[%emt 0:00:00]} 7. O-O {[%emt 0:00:49]} Bb7 {[%emt 0:00:00]} 8. Ne5 {[%emt 0:06:32]} a5 {[%emt 0:03:05]} 9. Qc2 {[%emt 0:18:32]} Be7 {[%emt 0:06:20]} 10. Ndf3 {[%emt 0:06:13]} Na6 {[%emt 0:04:28]} 11. cxd5 {[%emt 0:03:59]} exd5 {[%emt 0:02:59]} 12. Nc6 {[%emt 0:00:07]} Nb4 {[%emt 0:00:06]} 13. Nxe7+ {[%emt 0:00:04]} Qxe7 {[%emt 0:00:17]} 14. Qd1 {[%emt 0:01:17]} Rfe8 {[%emt 0:01:14]} 15. a3 {[%emt 0:00:06]} Na6 {[%emt 0:00:22]} 16. Re1 {[%emt 0:02:09]} c5 {[%emt 0:07:44]} 17. Qb3 {[%emt 0:01:58]} Qe6 {[%emt 0:10:30]} 18. Bf4 {[%emt 0:10:37]} h6 {[%emt 0:01:41]} 19. dxc5 {[%emt 0:00:07]} Nxc5 {[%emt 0:04:26]} 20. Qa2 {[%emt 0:04:39]} a4 {[%emt 0:05:22]} 21. Nd4 {[%emt 0:02:27]} Qd7 {[%emt 0:11:54]} 22. Rad1 {[%emt 0:02:34]} Ba6 {[%emt 0:01:05]} 23. Qb1 {[%emt 0:00:07]} Rad8 {[%emt 0:06:45]} 24. Bf3 {[%emt 0:03:25]} Nfe4 {[%emt 0:01:55]} 25. Nc2 {[%emt 0:02:18]} Bc4 {[%emt 0:00:44]} 26. Be3 {[%emt 0:01:37]} Qe6 {[%emt 0:09:59]} 27. Bg2 {[%emt 0:07:14]} Qg6 {[%emt 0:06:18]} 28. Nd4 {[%emt 0:00:10]} Qf6 {[%emt 0:01:00]} 29. Nf3 {[%emt 0:03:47]} Nb3 {[%emt 0:02:54]} 30. Nd4 {[%emt 0:00:13]} Nbc5 {[%emt 0:01:14]} 31. Qc1 {[%emt 0:09:50]} Nb3 {[%emt 0:03:00]} 32. Nxb3 {[%emt 0:00:04]} Bxb3 {[%emt 0:02:28]} 33. Bd4 {[%emt 0:00:12]} Qe6 {[%emt 0:00:30]} 34. Rd3 {[%emt 0:00:05]} Rc8 {[%emt 0:02:24]} 35. Qf4 {[%emt 0:00:20]} g5 {[%emt 0:03:00]} 36. Qe3 {[%emt 0:04:40]} Bc2 {[%emt 0:00:19]} 37. Bxe4 {[%emt 0:00:06]} Qxe4 {[%emt 0:00:24]} 38. Qxe4 {[%emt 0:00:08]} dxe4 {[%emt 0:00:29]} 39. Rd2 {[%emt 0:05:16]} b5 {[%emt 0:00:00]} 40. Rc1 {[%emt 0:00:00]} Bb3 {[%emt 0:00:00]} 41. Rxc8 {[%emt 0:00:00]} Rxc8 {[%emt 0:00:00]} 42. Bc3 {[%emt 0:00:00]} h5 {[%emt 0:00:00]} 43. Rd6 {[%emt 0:00:00]} Be6 {[%emt 0:00:00]} 44. Rb6 {[%emt 0:00:00]} Rc5 {[%emt 0:00:00]} 45. h4 {[%emt 0:00:00]} g4 {[%emt 0:00:00]} 46. Kf1 {[%emt 0:00:00]} Kh7 {[%emt 0:00:00]} 47. Ke1 {[%emt 0:00:00]} Rd5 {[%emt 0:00:00]} 48. Rb8 {[%emt 0:00:00]} Kg6 {[%emt 0:00:00]} 49. Rg8+ {[%emt 0:00:00]} Kh7 {[%emt 0:00:00]} 50. Rh8+ {[%emt 0:00:00]} Kg6 {[%emt 0:00:00]} 51. Bb4 {[%emt 0:00:00]} Kg7 {[%emt 0:00:00]} 52. Rb8 {[%emt 0:00:00]} Kh7 {[%emt 0:00:00]} 53. Bd2 {[%emt 0:00:00]} Rf5 {[%emt 0:00:00]} 54. Rb6 {[%emt 0:00:00]} Kg8 {[%emt 0:00:00]} 55. Rc6 {[%emt 0:00:00]} Kh7 {[%emt 0:00:00]} 56. Rb6 {[%emt 0:00:00]} Kg8 {[%emt 0:00:00]} 57. Ra6 {[%emt 0:00:00]} Kh7 {[%emt 0:00:00]} 58. Ra8 {[%emt 0:00:46]} Bb3 {[%emt 0:00:00]} 59. Rd8 {[%emt 0:03:12]} Rd5 {[%emt 0:00:00]} 60. Re8 {[%emt 0:00:04]} Bc2 {[%emt 0:00:00]} 61. Rc8 {[%emt 0:00:06]} Bb3 {[%emt 0:00:00]} 62. Rc6 {[%emt 0:00:36]} Kg8 {[%emt 0:00:00]} 63. Rc7 {[%emt 0:00:57]} Rd8 {[%emt 0:00:00]} 64. Re7 {[%emt 0:03:06]} Be6 {[%emt 0:00:00]} 65. Rb7 {[%emt 0:00:58]} Bc4 {[%emt 0:00:52]} 66. Bg5 {[%emt 0:00:50]} Rd5 {[%emt 0:02:26]} 67. Re7 {[%emt 0:00:04]} Bb3 {[%emt 0:00:04]} 68. Bd2 {[%emt 0:00:03]} Bc2 {[%emt 0:00:24]} 69. Re8+ {[%emt 0:00:28]} Kh7 {[%emt 0:00:18]} 70. Rf8 {[%emt 0:00:50]} Kg6 {[%emt 0:00:58]} 71. Rg8+ {[%emt 0:00:35]} Kh7 {[%emt 0:00:06]} 72. Rc8 {[%emt 0:00:07]} Bb3 {[%emt 0:00:06]} 73. Rc6 {[%emt 0:00:28]} Kg8 {[%emt 0:00:20]} 74. Rc7 {[%emt 0:00:46]} Rd8 {[%emt 0:00:17]} 75. Re7 {[%emt 0:00:06]} Be6 {[%emt 0:01:11]} 76. Rb7 {[%emt 0:00:49]} Bc4 {[%emt 0:02:36]} 77. Rb6 {[%emt 0:01:57]} Kg7 {[%emt 0:01:43]} 78. Bh6+ {[%emt 0:00:26]} Kg8 {[%emt 0:01:35]} 79. Bd2 {[%emt 0:00:26]} Kg7 {[%emt 0:00:22]} 80. Bc3+ {[%emt 0:00:20]} Kh7 {[%emt 0:01:00]} 81. Rf6 {[%emt 0:02:07]} Be6 {[%emt 0:03:13]} 82. Rf4 {[%emt 0:00:06]} f5 {[%emt 0:00:05]} 83. f3 {[%emt 0:02:41]} exf3 {[%emt 0:00:05]} 84. exf3 {[%emt 0:00:04]} Rd3 {[%emt 0:00:59]} 85. fxg4 {[%emt 0:00:06]} hxg4 {[%emt 0:00:09]} 86. Kf2 {[%emt 0:00:33]} Kg6 {[%emt 0:00:18]} 87. Rd4 {[%emt 0:00:33]} 1/2-1/2

[Event "47th GRE-chT 2019"]
[Site "Patra"]
[Date "2019.07.05"]
[Round "6.33"]
[White "Tetepoulidis, Ioannis"]
[Black "Grivas, Efstratios"]
[Result "1/2-1/2"]
[ECO "B23"]
[WhiteElo "2117"]
[BlackElo "2418"]
[Annotator "NA"]
[PlyCount "81"]
[EventDate "2019.07.02"]
[EventCountry "GRE"]
[SourceTitle "playchess.com"]
[Source "ChessBase"]
[SourceQuality "1"]
[TimeControl "5400+30"]

1. e4 {[%emt 0:00:00]} c5 {[%emt 0:00:00] c5} 2. Nc3 {[%emt 0:00:00]} Nc6 {[%emt 0:00:00]} 3. f4 {[%emt 0:00:00]} e6 {[%emt 0:00:30]} 4. Nf3 {[%emt 0:00:00]} Nge7 {[%emt 0:00:14]} 5. d4 {[%emt 0:00:00]} Nxd4 {[%emt 0:01:47]} 6. Nxd4 {[%emt 0:00:01]} cxd4 {[%emt 0:00:06]} 7. Qxd4 {[%emt 0:00:03]} Nc6 {[%emt 0:00:11]} 8. Qf2 {[%emt 0:00:03]} d6 {[%emt 0:00:28]} 9. Be3 {[%emt 0:00:37]} Bd7 {[%emt 0:01:09]} 10. O-O-O {[%emt 0:13:57]} a6 {[%emt 0:04:04]} 11. Bb6 {[%emt 0:04:28]} Qb8 {[%emt 0:02:08]} 12. g4 {[%emt 0:07:50]} Be7 {[%emt 0:01:39]} 13. Rg1 {[%emt 0:02:58]} g5 {[%emt 0:06:10]} 14. f5 {[%emt 0:00:35]} Ne5 {[%emt 0:00:56]} 15. f6 {[%emt 0:07:34]} Bd8 {[%emt 0:02:20]} 16. Bxd8 {[%emt 0:04:50]} Qxd8 {[%emt 0:01:42]} 17. Rxd6 {[%emt 0:02:43]} Qc7 {[%emt 0:04:12]} 18. Rd2 {[%emt 0:01:31]} O-O-O {[%emt 0:04:20]} 19. Be2 {[%emt 0:01:51]} Bc6 {[%emt 0:00:37]} 20. Rxd8+ {[%emt 0:01:05]} Rxd8 {[%emt 0:00:31]} 21. h4 {[%emt 0:00:52]} h6 {[%emt 0:10:02]} 22. Qe3 {[%emt 0:03:38]} Rg8 {[%emt 0:01:54]} 23. hxg5 {[%emt 0:31:43]} hxg5 {[%emt 0:02:54]} 24. Rh1 {[%emt 0:00:34]} Nd7 {[%emt 0:02:28]} 25. Qd4 {[%emt 0:05:02]} Qf4+ {[%emt 0:08:32]} 26. Kb1 {[%emt 0:00:02]} Qxf6 {[%emt 0:00:47]} 27. Qxf6 {[%emt 0:02:14]} Nxf6 {[%emt 0:00:41]} 28. Rf1 {[%emt 0:00:03]} Nxe4 {[%emt 0:09:06]} 29. Nxe4 {[%emt 0:00:53]} Bxe4 {[%emt 0:00:05]} 30. Rxf7 {[%emt 0:00:46]} Rh8 {[%emt 0:04:04]} 31. Kc1 {[%emt 0:01:59]} Rh2 {[%emt 0:02:00]} 32. Bd3 {[%emt 0:01:16]} Bxd3 {[%emt 0:08:54]} 33. cxd3 {[%emt 0:00:05]} Rg2 {[%emt 0:00:09]} 34. Re7 {[%emt 0:00:07]} Rxg4 {[%emt 0:00:07]} 35. Rxe6 {[%emt 0:00:02]} Kd7 {[%emt 0:00:08]} 36. Rg6 {[%emt 0:00:03]} Rg2 {[%emt 0:00:08]} 37. d4 {[%emt 0:04:28]} g4 {[%emt 0:03:06]} 38. d5 {[%emt 0:00:39]} g3 {[%emt 0:00:10]} 39. a4 {[%emt 0:01:21]} Ke7 {[%emt 0:06:50]} 40. d6+ {[%emt 0:00:00]} Kd7 {[%emt 0:00:00]} 41. Kb1 {[%emt 0:00:00]} 1/2-1/2

[Event "47th GRE-chT 2019"]
[Site "Patra"]
[Date "2019.07.05"]
[Round "6.34"]
[White "Souleidis, Georgios"]
[Black "Nikolakis, Panagiotis Marios"]
[Result "1/2-1/2"]
[ECO "B30"]
[WhiteElo "2426"]
[BlackElo "1911"]
[Annotator "NA"]
[PlyCount "130"]
[EventDate "2019.07.02"]
[EventCountry "GRE"]
[SourceTitle "playchess.com"]
[Source "ChessBase"]
[SourceQuality "1"]
[TimeControl "5400+30"]

1. e4 {[%emt 0:00:00]} c5 {[%emt 0:00:00]} 2. Nf3 {[%emt 0:00:00]} d6 {[%emt 0:00:00]} 3. Bc4 {[%emt 0:00:04]} e6 {[%emt 0:00:02]} 4. O-O {[%emt 0:00:07]} Nc6 {[%emt 0:01:34]} 5. Re1 {[%emt 0:00:29]} Nf6 {[%emt 0:01:05]} 6. Bb3 {[%emt 0:00:21]} Be7 {[%emt 0:00:07]} 7. c3 {[%emt 0:01:37]} O-O {[%emt 0:00:34]} 8. d4 {[%emt 0:19:16]} e5 {[%emt 0:09:29]} 9. d5 {[%emt 0:02:59]} Nb8 {[%emt 0:01:12]} 10. a4 {[%emt 0:01:15]} b6 {[%emt 0:01:08]} 11. Nbd2 {[%emt 0:00:26]} Re8 {[%emt 0:01:00]} 12. Bc4 {[%emt 0:08:03]} a6 {[%emt 0:00:30]} 13. h3 {[%emt 0:00:33]} Bf8 {[%emt 0:04:26]} 14. b4 {[%emt 0:09:36]} Nbd7 {[%emt 0:08:28]} 15. Ba3 {[%emt 0:09:04]} Nh5 {[%emt 0:00:42]} 16. Bf1 {[%emt 0:03:09]} Rb8 {[%emt 0:01:25]} 17. Rb1 {[%emt 0:01:42]} g6 {[%emt 0:02:59]} 18. bxc5 {[%emt 0:00:31]} bxc5 {[%emt 0:02:17]} 19. Rxb8 {[%emt 0:00:08]} Nxb8 {[%emt 0:02:28]} 20. Nc4 {[%emt 0:12:13]} Nf4 {[%emt 0:01:19]} 21. Bc1 {[%emt 0:01:08]} Bg7 {[%emt 0:14:17]} 22. Kh2 {[%emt 0:07:13]} Qc7 {[%emt 0:07:06]} 23. Bxf4 {[%emt 0:00:09]} exf4 {[%emt 0:00:07]} 24. Qd2 {[%emt 0:19:29]} Nd7 {[%emt 0:07:44]} 25. Qxf4 {[%emt 0:02:01]} Bxc3 {[%emt 0:00:43]} 26. Qxd6 {[%emt 0:00:18]} Qxd6+ {[%emt 0:00:04]} 27. Nxd6 {[%emt 0:00:55]} Ne5 {[%emt 0:03:18]} 28. Nxe8 {[%emt 0:00:07]} Nxf3+ {[%emt 0:00:02]} 29. gxf3 {[%emt 0:00:10]} Bxe1 {[%emt 0:04:02]} 30. d6 {[%emt 0:00:06]} Bc3 {[%emt 0:00:50]} 31. f4 {[%emt 0:01:02]} Bd7 {[%emt 0:00:04]} 32. Nc7 {[%emt 0:00:27]} Bxa4 {[%emt 0:01:38]} 33. e5 {[%emt 0:00:59]} Kf8 {[%emt 0:01:01]} 34. Bxa6 {[%emt 0:00:47]} Bc6 {[%emt 0:02:43]} 35. Kg3 {[%emt 0:00:12]} Bd4 {[%emt 0:06:51]} 36. Bb5 {[%emt 0:00:27]} Bxb5 {[%emt 0:00:01]} 37. Nxb5 {[%emt 0:00:21]} Bb2 {[%emt 0:00:06]} 38. Kf3 {[%emt 0:00:31]} Ke8 {[%emt 0:00:07]} 39. Ke4 {[%emt 0:00:39]} c4 {[%emt 0:00:00]} 40. Nc7+ {[%emt 0:00:00]} Kd8 {[%emt 0:00:00]} 41. Nd5 {[%emt 0:00:00]} h6 {[%emt 0:00:00]} 42. Ne3 {[%emt 0:00:00]} c3 {[%emt 0:00:00]} 43. Kd3 {[%emt 0:00:00]} g5 {[%emt 0:00:00]} 44. fxg5 {[%emt 0:00:00]} hxg5 {[%emt 0:00:55]} 45. Kc2 {[%emt 0:00:00]} Kd7 {[%emt 0:00:05]} 46. Nd5 {[%emt 0:00:00]} Ke6 {[%emt 0:13:08]} 47. Nc7+ {[%emt 0:00:00]} Kd7 {[%emt 0:00:08]} 48. Nd5 {[%emt 0:00:00]} Ke6 {[%emt 0:02:50]} 49. Nxc3 {[%emt 0:00:00]} Ba3 {[%emt 0:01:07]} 50. Kb3 {[%emt 0:05:45]} Bc5 {[%emt 0:00:01]} 51. Kc4 {[%emt 0:00:11]} Bxf2 {[%emt 0:00:13]} 52. Ne4 {[%emt 0:00:34]} Bb6 {[%emt 0:00:56]} 53. Nxg5+ {[%emt 0:00:07]} Kxe5 {[%emt 0:04:53]} 54. Kb5 {[%emt 0:00:07]} Be3 {[%emt 0:00:22]} 55. Nxf7+ {[%emt 0:00:07]} Ke6 {[%emt 0:00:49]} 56. d7 {[%emt 0:00:11]} Kxd7 {[%emt 0:00:17]} 57. Ne5+ {[%emt 0:00:09]} Ke6 {[%emt 0:00:04]} 58. Ng4 {[%emt 0:00:29]} Bc1 {[%emt 0:00:01]} 59. Kc4 {[%emt 0:00:11]} Kf5 {[%emt 0:00:09]} 60. Kd3 {[%emt 0:01:17]} Kg5 {[%emt 0:00:09]} 61. Ke4 {[%emt 0:00:40]} Kh4 {[%emt 0:00:05]} 62. Nf2 {[%emt 0:00:14]} Ba3 {[%emt 0:00:11]} 63. Kf3 {[%emt 0:00:10]} Bc5 {[%emt 0:00:03]} 64. Kg2 {[%emt 0:00:05]} Bxf2 {[%emt 0:00:02]} 65. Kxf2 {[%emt 0:00:06]} Kxh3 {[%emt 0:00:01]} 1/2-1/2

[Event "47th GRE-chT 2019"]
[Site "Patra"]
[Date "2019.07.05"]
[Round "6.35"]
[White "Salimova, Nurgyul"]
[Black "Daulyte-Cornette, Deimante"]
[Result "1/2-1/2"]
[ECO "C54"]
[WhiteElo "2416"]
[BlackElo "2444"]
[Annotator "NA"]
[PlyCount "56"]
[EventDate "2019.07.02"]
[EventCountry "GRE"]
[SourceTitle "playchess.com"]
[Source "ChessBase"]
[SourceQuality "1"]
[TimeControl "5400+30"]

1. e4 {[%emt 0:00:00]} e5 {[%emt 0:00:00]} 2. Nf3 {[%emt 0:00:00]} Nc6 {[%emt 0:00:00]} 3. Bc4 {[%emt 0:00:00]} Nf6 {[%emt 0:00:00]} 4. d3 {[%emt 0:00:00]} Bc5 {[%emt 0:00:14]} 5. O-O {[%emt 0:00:19]} d6 {[%emt 0:00:31]} 6. c3 {[%emt 0:00:38]} a6 {[%emt 0:00:14]} 7. a4 {[%emt 0:02:25]} Ba7 {[%emt 0:00:23]} 8. Nbd2 {[%emt 0:05:56]} O-O {[%emt 0:04:14]} 9. h3 {[%emt 0:03:05]} Ne7 {[%emt 0:00:59]} 10. Re1 {[%emt 0:00:50]} Ng6 {[%emt 0:00:51]} 11. Nf1 {[%emt 0:01:47]} c6 {[%emt 0:01:22]} 12. Bb3 {[%emt 0:01:55]} d5 {[%emt 0:02:57]} 13. Bg5 {[%emt 0:06:29]} h6 {[%emt 0:44:03]} 14. Bxf6 {[%emt 0:18:55]} Qxf6 {[%emt 0:00:06]} 15. exd5 {[%emt 0:01:18]} Nf4 {[%emt 0:01:41]} 16. d4 {[%emt 0:09:27]} exd4 {[%emt 0:04:39]} 17. cxd4 {[%emt 0:02:22]} cxd5 {[%emt 0:01:28]} 18. Ne3 {[%emt 0:10:00]} Be6 {[%emt 0:07:02]} 19. Ng4 {[%emt 0:08:51]} Bxg4 {[%emt 0:04:06]} 20. hxg4 {[%emt 0:00:02]} Rfe8 {[%emt 0:01:59]} 21. Re3 {[%emt 0:06:13]} Re4 {[%emt 0:11:55]} 22. Bc2 {[%emt 0:08:03]} Re7 {[%emt 0:01:04]} 23. Rxe7 {[%emt 0:00:54]} Qxe7 {[%emt 0:00:05]} 24. g3 {[%emt 0:01:12]} Ne6 {[%emt 0:00:39]} 25. Qd3 {[%emt 0:00:10]} g6 {[%emt 0:00:13]} 26. Re1 {[%emt 0:04:15]} Qf6 {[%emt 0:00:42]} 27. Bb3 {[%emt 0:01:54]} Rd8 {[%emt 0:02:29]} 28. Rd1 {[%emt 0:00:10]} Kg7 {[%emt 0:02:00]} 1/2-1/2